[Event "African Championship"]
[Site "followchess.com"]
[Date "2021.05.26"]
[Round "8"]
[White "Mwale, Joseph"]
[Black "Hesham, Abdelrahman"]
[Result "0-1"]
[ECO "A05"]
[WhiteElo "2148"]
[BlackElo "2400"]
[PlyCount "68"]
[EventDate "2021.??.??"]
[TimeControl "7200+30"]
[WhiteClock "0:09:21"]
[BlackClock "0:11:21"]

1. Nf3 {[%emt 0:29:31]} Nf6 {[%emt 0:33:22]} 2. g3 {[%emt 0:00:07]} d5 {
[%emt 0:00:06]} 3. Bg2 {[%emt 0:00:15]} e6 {[%emt 0:00:05]} 4. O-O {[%emt 0:00:
19]} Be7 {[%emt 0:00:04]} 5. d4 {[%emt 0:00:08]} O-O {[%emt 0:00:05]} 6. c4 {
[%emt 0:00:03]} dxc4 {[%emt 0:00:03]} 7. Qc2 {[%emt 0:00:12]} b5 {[%emt 0:00:
04]} 8. a4 {[%emt 0:00:19]} b4 {[%emt 0:00:11]} 9. Nfd2 {[%emt 0:00:13]} Nd5 {
[%emt 0:00:06]} 10. Nxc4 {[%emt 0:02:25]} c5 {[%emt 0:00:08]} 11. e4 {[%emt 0:
01:07]} Nb6 {[%emt 0:09:50]} 12. e5 {[%emt 0:03:50]} Nd5 {[%emt 0:01:07]} 13.
dxc5 {[%emt 0:01:59]} Ba6 {[%emt 0:03:00]} 14. Rd1 {[%emt 0:02:44]} Nd7 {
[%emt 0:02:33]} 15. Ne3 {[%emt 0:11:03]} Rc8 {[%emt 0:07:19]} 16. Nxd5 {
[%emt 0:05:12]} exd5 {[%emt 0:00:18]} 17. c6 {[%emt 0:00:48]} Nxe5 {[%emt 0:11:
21]} 18. Bxd5 {[%emt 0:08:46]} Nxc6 {[%emt 0:08:36]} 19. Be3 {[%emt 0:10:48]}
Qe8 {[%emt 0:10:48]} 20. Qf5 {[%emt 0:03:57]} Bd6 {[%emt 0:06:04]} 21. Be4 {
[%emt 0:03:26]} g6 {[%emt 0:00:12]} 22. Qf3 {[%emt 0:01:53]} Ne5 {[%emt 0:02:
24]} 23. Qg2 {[%emt 0:05:41]} Ng4 {[%emt 0:09:06]} 24. Bxa7 {[%emt 0:04:17]}
Be5 {[%emt 0:00:14]} 25. Nd2 {[%emt 0:00:26]} Bxb2 {[%emt 0:00:11]} 26. Rab1 {
[%emt 0:01:07]} Bc3 {[%emt 0:02:42]} 27. Bf3 {[%emt 0:13:18]} Ne5 {[%emt 0:03:
51]} 28. Ne4 {[%emt 0:00:35]} Qe7 {[%emt 0:09:54]} 29. Bd4 {[%emt 0:04:54]}
Rfd8 {[%emt 0:00:50]} 30. Nxc3 {[%emt 0:04:29]} bxc3 {[%emt 0:00:33]} 31. Bxe5
{[%emt 0:00:25]} c2 {[%emt 0:01:30]} 32. Rxd8+ {[%emt 0:00:10]} Rxd8 {[%emt 0:
00:26]} 33. Rc1 {[%emt 0:00:41]} Qxe5 {[%emt 0:00:15]} 34. Qh3 {[%emt 0:00:31]}
Rd1+ {[%emt 0:00:21]} 0-1

[Event "African Championship"]
[Site "followchess.com"]
[Date "2021.05.26"]
[Round "8"]
[White "Nassr, Ali"]
[Black "Okeke Issac"]
[Result "1-0"]
[ECO "E21"]
[WhiteElo "2232"]
[BlackElo "2097"]
[PlyCount "67"]
[EventDate "2021.??.??"]
[TimeControl "7200+30"]
[WhiteClock "0:08:19"]
[BlackClock "0:19:01"]

1. d4 {[%emt 0:29:32]} Nf6 {[%emt 0:29:36]} 2. Nf3 {[%emt 0:00:08]} e6 {
[%emt 0:00:05]} 3. c4 {[%emt 0:00:26]} Bb4+ {[%emt 0:00:46]} 4. Nc3 {[%emt 0:
00:13]} c5 {[%emt 0:01:16]} 5. dxc5 {[%emt 0:02:20]} Ne4 {[%emt 0:07:03]} 6.
Qd4 {[%emt 0:04:20]} Qa5 {[%emt 0:01:08]} 7. Qxg7 {[%emt 0:02:30]} Rf8 {
[%emt 0:00:05]} 8. Bd2 {[%emt 0:03:04]} Nxd2 {[%emt 0:01:55]} 9. Nxd2 {[%emt 0:
00:16]} Qxc5 {[%emt 0:02:12]} 10. e3 {[%emt 0:03:01]} Qf5 {[%emt 0:03:47]} 11.
a3 {[%emt 0:04:11]} Be7 {[%emt 0:02:29]} 12. Nde4 {[%emt 0:01:44]} Qg6 {
[%emt 0:03:51]} 13. Qxg6 {[%emt 0:04:18]} hxg6 {[%emt 0:00:57]} 14. Nb5 {
[%emt 0:01:03]} Kd8 {[%emt 0:00:25]} 15. Be2 {[%emt 0:05:58]} f5 {[%emt 0:01:
59]} 16. Nec3 a6 {[%emt 0:01:26]} 17. Nd4 {[%emt 0:00:46]} Nc6 {[%emt 0:02:04]}
18. O-O {[%emt 0:05:47]} d6 {[%emt 0:05:28]} 19. Rfd1 {[%emt 0:01:55]} Bd7 {
[%emt 0:04:11]} 20. Rac1 {[%emt 0:04:49]} Rc8 {[%emt 0:05:17]} 21. Nxc6+ {
[%emt 0:01:05]} Bxc6 {[%emt 0:20:27]} 22. b4 {[%emt 0:00:12]} Ke8 {[%emt 0:09:
21]} 23. a4 {[%emt 0:17:08]} Kf7 {[%emt 0:02:16]} 24. b5 {[%emt 0:00:50]} axb5
{[%emt 0:00:54]} 25. axb5 {[%emt 0:00:15]} Bd7 {[%emt 0:00:45]} 26. Na4 {
[%emt 0:00:55]} Rfd8 {[%emt 0:03:14]} 27. Nb6 {[%emt 0:02:17]} Rc5 {[%emt 0:02:
14]} 28. Bf3 {[%emt 0:01:20]} d5 {[%emt 0:04:41]} 29. Be2 {[%emt 0:07:34]} Be8
{[%emt 0:03:32]} 30. Na4 {[%emt 0:02:01]} Rcc8 {[%emt 0:01:13]} 31. cxd5 {
[%emt 0:00:10]} exd5 {[%emt 0:02:34]} 32. Rc3 Rc7 33. Rxc7 {[%emt 0:07:06]} Rc8
34. Rxc8 {[%emt 0:00:45]} 1-0

[Event "African Championship"]
[Site "followchess.com"]
[Date "2021.05.26"]
[Round "8"]
[White "Ndegwa, Jackson Kamau"]
[Black "Beukes, Dante M"]
[Result "0-1"]
[ECO "B20"]
[WhiteElo "2001"]
[BlackElo "2284"]
[PlyCount "114"]
[EventDate "2021.??.??"]
[TimeControl "7200+30"]
[WhiteClock "0:14:35"]
[BlackClock "0:15:33"]

1. e4 {[%emt 0:32:23]} c5 {[%emt 0:30:47]} 2. b3 {[%emt 0:00:15]} g6 {[%emt 0:
02:34]} 3. Bb2 {[%emt 0:00:50]} Nf6 {[%emt 0:00:09]} 4. f4 {[%emt 0:00:31]} Bg7
{[%emt 0:01:15]} 5. Be2 {[%emt 0:05:19]} O-O {[%emt 0:02:31]} 6. d3 {[%emt 0:
00:04]} Qa5+ {[%emt 0:06:00]} 7. Bc3 {[%emt 0:00:50]} Qc7 {[%emt 0:00:34]} 8.
Nh3 {[%emt 0:01:49]} Nc6 {[%emt 0:02:10]} 9. O-O {[%emt 0:04:03]} Nd4 {[%emt 0:
01:37]} 10. Bxd4 {[%emt 0:04:33]} cxd4 {[%emt 0:00:17]} 11. Qd2 {[%emt 0:00:12]
} b5 {[%emt 0:06:35]} 12. c4 {[%emt 0:03:04]} bxc4 {[%emt 0:02:36]} 13. bxc4 {
[%emt 0:00:34]} Nxe4 {[%emt 0:03:00]} 14. dxe4 {[%emt 0:03:21]} d3 {[%emt 0:00:
32]} 15. e5 {[%emt 0:00:45]} dxe2 {[%emt 0:00:12]} 16. Qxe2 {[%emt 0:00:06]} d6
{[%emt 0:00:56]} 17. Nc3 {[%emt 0:17:20]} dxe5 {[%emt 0:03:04]} 18. Nf2 {
[%emt 0:07:53]} Be6 {[%emt 0:05:27]} 19. Nd5 {[%emt 0:05:00]} Bxd5 {[%emt 0:00:
29]} 20. cxd5 {[%emt 0:00:02]} exf4 {[%emt 0:00:18]} 21. Rad1 {[%emt 0:00:59]}
Rad8 {[%emt 0:02:32]} 22. Kh1 {[%emt 0:02:27]} Qe5 {[%emt 0:07:14]} 23. Qf3 {
[%emt 0:07:14]} Qe3 {[%emt 0:03:19]} 24. Rfe1 {[%emt 0:08:28]} Qxf3 {[%emt 0:
00:16]} 25. gxf3 {[%emt 0:00:01]} Bf6 {[%emt 0:02:25]} 26. Re4 {[%emt 0:01:20]}
g5 {[%emt 0:20:27]} 27. Ra4 {[%emt 0:00:55]} Rd7 {[%emt 0:00:28]} 28. Ne4 {
[%emt 0:00:25]} Kg7 {[%emt 0:01:07]} 29. Ra6 {[%emt 0:06:20]} Rfd8 {[%emt 0:02:
09]} 30. d6 {[%emt 0:00:01]} exd6 {[%emt 0:04:42]} 31. Rdxd6 {[%emt 0:00:41]}
Be7 {[%emt 0:00:50]} 32. Rdc6 {[%emt 0:00:52]} Rb8 {[%emt 0:07:39]} 33. Rc2 Rb6
{[%emt 0:00:41]} 34. Ra5 {[%emt 0:00:40]} h6 {[%emt 0:00:15]} 35. Kg2 {[%emt 0:
00:21]} Bb4 {[%emt 0:01:12]} 36. Re5 {[%emt 0:01:07]} f6 {[%emt 0:04:16]} 37.
Re8 {[%emt 0:00:10]} f5 {[%emt 0:00:05]} 38. Nf2 {[%emt 0:00:45]} Rbd6 {
[%emt 0:00:34]} 39. Rcc8 {[%emt 0:01:21]} Rf7 {[%emt 0:04:29]} 40. Rh8 {
[%emt 0:00:00]} Rfd7 {[%emt 0:00:00]} 41. Rcf8 {[%emt 0:00:00]} Bc5 {[%emt 0:
00:00]} 42. Rhg8+ {[%emt 0:00:00]} Kh7 {[%emt 0:00:00]} 43. Rh8+ {[%emt 0:00:
00]} Kg6 {[%emt 0:00:00]} 44. Rhg8+ {[%emt 0:00:00]} Rg7 {[%emt 0:00:00]} 45.
Rxg7+ {[%emt 0:00:59]} Kxg7 {[%emt 0:00:00]} 46. Rxf5 {[%emt 0:00:08]} Bxf2 {
[%emt 0:00:00]} 47. Kxf2 {[%emt 0:00:06]} Rd2+ {[%emt 0:00:00]} 48. Kg1 {
[%emt 0:00:18]} Rxa2 {[%emt 0:00:00]} 49. Rc5 a5 {[%emt 0:00:00]} 50. Rc6 {
[%emt 0:00:31]} a4 {[%emt 0:00:00]} 51. Rb6 {[%emt 0:00:26]} a3 {[%emt 0:00:00]
} 52. Ra6 {[%emt 0:00:06]} h5 {[%emt 0:00:00]} 53. h3 {[%emt 0:00:27]} Ra1+ {
[%emt 0:00:00]} 54. Kg2 {[%emt 0:00:17]} a2 {[%emt 0:00:00]} 55. Kh2 {[%emt 0:
04:22]} g4 {[%emt 0:00:00]} 56. hxg4 {[%emt 0:01:22]} hxg4 {[%emt 0:00:00]} 57.
Ra5 {[%emt 0:00:54]} gxf3 {[%emt 0:00:00]} 0-1

[Event "African Championship"]
[Site "followchess.com"]
[Date "2021.05.26"]
[Round "8"]
[White "Okonkwo, Ifeanyi"]
[Black "Kayonde, Andrew"]
[Result "0-1"]
[ECO "B13"]
[WhiteElo "2029"]
[BlackElo "2399"]
[PlyCount "116"]
[EventDate "2021.??.??"]
[TimeControl "7200+30"]
[WhiteClock "0:33:15"]
[BlackClock "0:19:02"]

1. e4 {[%emt 0:29:54]} c6 {[%emt 0:29:43]} 2. d4 {[%emt 0:00:44]} d5 {[%emt 0:
00:45]} 3. exd5 {[%emt 0:00:43]} cxd5 {[%emt 0:00:07]} 4. Bd3 {[%emt 0:00:05]}
Nc6 {[%emt 0:01:37]} 5. c3 {[%emt 0:00:20]} Qc7 {[%emt 0:01:43]} 6. Qb3 {
[%emt 0:03:49]} Nxd4 {[%emt 0:15:24]} 7. Qxd5 {[%emt 0:07:27]} e5 {[%emt 0:01:
49]} 8. Bf4 {[%emt 0:16:48]} Nc6 {[%emt 0:00:50]} 9. Be3 {[%emt 0:00:33]} Nf6 {
[%emt 0:00:41]} 10. Qb3 {[%emt 0:04:10]} Ng4 {[%emt 0:05:44]} 11. Na3 {[%emt 0:
06:45]} Nxe3 {[%emt 0:05:59]} 12. fxe3 {[%emt 0:00:06]} Bc5 {[%emt 0:00:19]}
13. O-O-O {[%emt 0:00:26]} Bxe3+ {[%emt 0:01:19]} 14. Kb1 {[%emt 0:00:28]} O-O
{[%emt 0:00:15]} 15. Qc2 {[%emt 0:01:35]} h6 {[%emt 0:05:19]} 16. Nb5 {[%emt 0:
00:29]} Qe7 {[%emt 0:01:41]} 17. Nd6 Be6 {[%emt 0:20:56]} 18. Nf5 {[%emt 0:06:
09]} Bxf5 {[%emt 0:09:29]} 19. Bxf5 {[%emt 0:01:30]} Bxg1 {[%emt 0:00:24]} 20.
Rhxg1 {[%emt 0:00:18]} Rad8 {[%emt 0:00:10]} 21. Rge1 {[%emt 0:04:53]} Rxd1+ {
[%emt 0:02:11]} 22. Rxd1 {[%emt 0:00:03]} Rd8 {[%emt 0:00:19]} 23. Be4 {
[%emt 0:00:08]} Rxd1+ {[%emt 0:07:58]} 24. Qxd1 {[%emt 0:00:17]} Qh4 {[%emt 0:
00:39]} 25. Qd3 {[%emt 0:10:20]} g6 {[%emt 0:02:12]} 26. b4 {[%emt 0:07:42]}
Kg7 {[%emt 0:02:11]} 27. Kc1 {[%emt 0:00:36]} Qd8 {[%emt 0:01:48]} 28. h3 {
[%emt 0:02:12]} Qc7 {[%emt 0:08:17]} 29. Qb5 {[%emt 0:03:32]} Nd8 {[%emt 0:00:
45]} 30. Kb2 {[%emt 0:04:29]} a6 {[%emt 0:00:44]} 31. Bd5 {[%emt 0:06:02]} Qd6
{[%emt 0:00:41]} 32. Qd3 {[%emt 0:00:52]} Ne6 {[%emt 0:00:40]} 33. g4 {[%emt 0:
04:06]} b5 {[%emt 0:00:10]} 34. Qf3 {[%emt 0:03:15]} Nf4 {[%emt 0:00:26]} 35.
Bb3 {[%emt 0:00:21]} Qd2+ {[%emt 0:00:25]} 36. Bc2 {[%emt 0:00:10]} Nd5 {
[%emt 0:01:05]} 37. Qd3 {[%emt 0:00:22]} Qxd3 {[%emt 0:01:14]} 38. Bxd3 {
[%emt 0:00:02]} Kf6 {[%emt 0:00:21]} 39. Kb3 {[%emt 0:00:31]} Ke6 {[%emt 0:00:
30]} 40. c4 {[%emt 0:00:00]} Nc7 {[%emt 0:00:00]} 41. a4 {[%emt 0:00:00]} bxa4+
{[%emt 0:00:00]} 42. Kxa4 {[%emt 0:00:00]} f5 {[%emt 0:00:00]} 43. Ka5 {
[%emt 0:00:00]} e4 {[%emt 0:00:00]} 44. Bc2 {[%emt 0:00:00]} Ke5 {[%emt 0:00:
00]} 45. Kb6 {[%emt 0:00:00]} Kd4 {[%emt 0:00:00]} 46. gxf5 {[%emt 0:00:00]}
gxf5 {[%emt 0:00:00]} 47. Kxc7 {[%emt 0:00:00]} Kxc4 {[%emt 0:00:00]} 48. Kd6 {
[%emt 0:00:00]} Kc3 {[%emt 0:00:00]} 49. Bd1 {[%emt 0:00:00]} Kd2 {[%emt 0:00:
00]} 50. Bb3 {[%emt 0:00:00]} e3 {[%emt 0:00:00]} 51. Bc4 {[%emt 0:00:00]} f4 {
[%emt 0:00:00]} 52. Ke5 {[%emt 0:00:00]} f3 {[%emt 0:00:00]} 53. Kf4 {[%emt 0:
00:00]} e2 {[%emt 0:00:00]} 54. Kxf3 {[%emt 0:00:00]} e1=Q {[%emt 0:00:00]} 55.
Bxa6 {[%emt 0:00:00]} Qe3+ {[%emt 0:00:00]} 56. Kg2 {[%emt 0:00:00]} Qg5+ {
[%emt 0:00:00]} 57. Kh2 {[%emt 0:00:00]} Ke3 {[%emt 0:00:00]} 58. Bf1 {[%emt 0:
00:00]} Kf2 {[%emt 0:00:00]} 0-1

[Event "African Championship"]
[Site "followchess.com"]
[Date "2021.05.26"]
[Round "8"]
[White "Oragwu, Chukwunonso"]
[Black "Abrantes, Persson"]
[Result "1-0"]
[ECO "B01"]
[WhiteElo "2241"]
[BlackElo "2018"]
[PlyCount "69"]
[EventDate "2021.??.??"]
[TimeControl "7200+30"]
[WhiteClock "0:00:56"]
[BlackClock "0:52:41"]

1. e4 {[%emt 0:29:33]} d5 {[%emt 0:34:32]} 2. exd5 {[%emt 0:00:06]} Qxd5 {
[%emt 0:00:01]} 3. Nc3 {[%emt 0:00:10]} Qa5 {[%emt 0:00:14]} 4. d4 {[%emt 0:00:
23]} Nf6 {[%emt 0:00:12]} 5. Bd3 {[%emt 0:00:29]} Bg4 {[%emt 0:00:29]} 6. f3 {
[%emt 0:00:07]} Bh5 {[%emt 0:00:17]} 7. Nge2 {[%emt 0:00:05]} Bg6 {[%emt 0:00:
22]} 8. Bc4 {[%emt 0:01:23]} e6 {[%emt 0:00:33]} 9. Be3 {[%emt 0:02:41]} c6 {
[%emt 0:00:27]} 10. Nf4 {[%emt 0:01:26]} Bb4 {[%emt 0:03:41]} 11. Qd2 {[%emt 0:
01:32]} Nd5 {[%emt 0:01:01]} 12. Bxd5 {[%emt 0:00:09]} cxd5 {[%emt 0:00:17]}
13. h4 {[%emt 0:00:12]} h6 {[%emt 0:06:14]} 14. Nxg6 {[%emt 0:00:12]} fxg6 {
[%emt 0:00:02]} 15. Qd3 {[%emt 0:00:41]} Bxc3+ {[%emt 0:06:37]} 16. bxc3 {
[%emt 0:01:49]} Kf7 {[%emt 0:06:05]} 17. h5 {[%emt 0:09:07]} gxh5 {[%emt 0:00:
19]} 18. Rxh5 {[%emt 0:01:40]} Nd7 {[%emt 0:00:13]} 19. Kf2 {[%emt 0:02:16]}
Nf6 {[%emt 0:00:21]} 20. Rh3 {[%emt 0:01:07]} Rac8 {[%emt 0:00:37]} 21. Bd2 {
[%emt 0:01:33]} Rc4 {[%emt 0:01:59]} 22. Rg3 {[%emt 0:00:38]} g5 {[%emt 0:00:
13]} 23. Rh1 {[%emt 0:00:05]} Rcc8 {[%emt 0:03:32]} 24. Rgh3 {[%emt 0:08:40]}
Kg7 25. Re1 {[%emt 0:05:57]} Rhe8 {[%emt 0:07:50]} 26. Re5 {[%emt 0:00:50]} Rc7
{[%emt 0:07:08]} 27. Rxh6 {[%emt 0:08:02]} Kxh6 {[%emt 0:44:28]} 28. Rxg5 {
[%emt 0:00:16]} Ne4+ {[%emt 0:00:31]} 29. fxe4 {[%emt 0:00:13]} Rf8+ {[%emt 0:
00:38]} 30. Kg1 {[%emt 0:00:24]} Rxc3 {[%emt 0:05:31]} 31. Rg3+ {[%emt 0:02:01]
} Kh7 {[%emt 0:00:25]} 32. Bxc3 {[%emt 0:00:16]} Qxa2 {[%emt 0:00:32]} 33. Rh3+
{[%emt 0:00:33]} Kg7 {[%emt 0:00:31]} 34. Qg3+ {[%emt 0:00:04]} Kf7 {[%emt 0:
00:12]} 35. Rh4 {[%emt 0:00:09]} 1-0

[Event "African Championship"]
[Site "followchess.com"]
[Date "2021.05.26"]
[Round "8"]
[White "Osunfuyi, Abimbola"]
[Black "Mwale, George"]
[Result "1-0"]
[ECO "A15"]
[WhiteElo "2246"]
[BlackElo "1982"]
[PlyCount "97"]
[EventDate "2021.??.??"]
[TimeControl "7200+30"]
[WhiteClock "0:37:45"]
[BlackClock "0:34:30"]

1. c4 {[%emt 0:29:42]} Nf6 {[%emt 0:34:17]} 2. g3 {[%emt 0:01:23]} g6 {[%emt 0:
00:14]} 3. Bg2 {[%emt 0:00:14]} Bg7 {[%emt 0:00:35]} 4. Nc3 {[%emt 0:00:07]} c6
{[%emt 0:00:42]} 5. e4 {[%emt 0:00:45]} d6 {[%emt 0:00:35]} 6. Nge2 {[%emt 0:
02:46]} O-O {[%emt 0:01:37]} 7. O-O {[%emt 0:01:05]} e5 {[%emt 0:00:59]} 8. d4
{[%emt 0:03:41]} Nbd7 {[%emt 0:02:27]} 9. h3 {[%emt 0:04:29]} Re8 {[%emt 0:03:
16]} 10. d5 {[%emt 0:04:54]} cxd5 {[%emt 0:00:45]} 11. cxd5 {[%emt 0:00:06]} a6
{[%emt 0:01:11]} 12. a4 {[%emt 0:02:22]} Rb8 {[%emt 0:02:58]} 13. Be3 {[%emt 0:
01:46]} b6 {[%emt 0:03:54]} 14. g4 {[%emt 0:13:37]} h5 {[%emt 0:03:21]} 15. f3
{[%emt 0:13:34]} Nf8 {[%emt 0:04:38]} 16. Ng3 {[%emt 0:02:36]} hxg4 {[%emt 0:
07:40]} 17. fxg4 {[%emt 0:00:19]} Bd7 {[%emt 0:00:18]} 18. Qf3 {[%emt 0:01:57]}
Qe7 {[%emt 0:00:24]} 19. Rf2 {[%emt 0:01:08]} Rec8 {[%emt 0:00:25]} 20. Raf1 {
[%emt 0:00:19]} Be8 {[%emt 0:00:02]} 21. g5 {[%emt 0:04:19]} N6h7 {[%emt 0:01:
03]} 22. h4 {[%emt 0:00:06]} b5 {[%emt 0:02:05]} 23. axb5 {[%emt 0:00:03]} axb5
{[%emt 0:00:01]} 24. Bh3 {[%emt 0:00:19]} Rc7 {[%emt 0:02:00]} 25. Rg2 {
[%emt 0:06:03]} b4 {[%emt 0:02:57]} 26. Nd1 {[%emt 0:00:03]} Bb5 {[%emt 0:03:
48]} 27. Re1 {[%emt 0:00:46]} Bd7 {[%emt 0:04:00]} 28. Bxd7 {[%emt 0:01:41]}
Qxd7 {[%emt 0:01:20]} 29. Ree2 {[%emt 0:03:04]} Ra8 {[%emt 0:01:53]} 30. Nf2 {
[%emt 0:00:37]} Ra1+ {[%emt 0:01:39]} 31. Kh2 {[%emt 0:00:04]} Qe7 {[%emt 0:19:
20]} 32. Nd3 {[%emt 0:05:24]} Rc4 {[%emt 0:05:41]} 33. Rc2 {[%emt 0:02:00]} Qc7
{[%emt 0:01:12]} 34. Nxb4 {[%emt 0:00:22]} Rxc2 {[%emt 0:01:46]} 35. Rxc2 {
[%emt 0:00:14]} Qd7 {[%emt 0:00:36]} 36. Nc6 {[%emt 0:00:32]} f6 {[%emt 0:00:
46]} 37. Rg2 {[%emt 0:05:16]} Re1 {[%emt 0:03:07]} 38. Bd2 {[%emt 0:04:10]} Rb1
{[%emt 0:01:34]} 39. Be3 {[%emt 0:00:07]} Re1 {[%emt 0:01:01]} 40. Ne2 {
[%emt 0:00:00]} f5 {[%emt 0:00:00]} 41. exf5 {[%emt 0:00:00]} gxf5 {[%emt 0:00:
00]} 42. Qxf5 {[%emt 0:00:00]} Qe8 {[%emt 0:00:00]} 43. g6 {[%emt 0:00:00]} Nf6
{[%emt 0:00:00]} 44. Bd2 {[%emt 0:00:00]} Ra1 {[%emt 0:00:00]} 45. Nc3 {
[%emt 0:00:00]} e4 {[%emt 0:00:00]} 46. Be3 {[%emt 0:00:00]} Re1 {[%emt 0:00:
00]} 47. Bd4 {[%emt 0:00:00]} N8d7 {[%emt 0:00:00]} 48. Nb5 {[%emt 0:00:00]}
Qf8 {[%emt 0:00:00]} 49. Qe6+ {[%emt 0:00:00]} 1-0

[Event "African Championship"]
[Site "followchess.com"]
[Date "2021.05.26"]
[Round "8"]
[White "Rakotomaharo, Fy Antenaina"]
[Black "Bellahcene, Bilel"]
[Result "0-1"]
[ECO "E46"]
[WhiteElo "2429"]
[BlackElo "2508"]
[PlyCount "76"]
[EventDate "2021.??.??"]
[TimeControl "7200+30"]
[WhiteClock "0:05:06"]
[BlackClock "0:03:38"]

1. d4 {[%emt 0:29:34]} Nf6 {[%emt 0:32:20]} 2. c4 {[%emt 0:00:09]} e6 {[%emt 0:
00:04]} 3. Nc3 {[%emt 0:00:10]} Bb4 {[%emt 0:00:05]} 4. e3 {[%emt 0:00:05]} O-O
{[%emt 0:00:06]} 5. Nge2 {[%emt 0:00:13]} d5 {[%emt 0:00:32]} 6. a3 {[%emt 0:
00:07]} Be7 {[%emt 0:00:06]} 7. cxd5 {[%emt 0:02:21]} exd5 {[%emt 0:00:05]} 8.
g3 {[%emt 0:00:03]} Re8 {[%emt 0:19:37]} 9. Bg2 {[%emt 0:00:21]} a5 {[%emt 0:
06:17]} 10. O-O {[%emt 0:04:53]} Na6 {[%emt 0:08:08]} 11. b3 {[%emt 0:14:46]}
h6 {[%emt 0:02:27]} 12. Nf4 {[%emt 0:03:01]} c6 {[%emt 0:00:23]} 13. f3 {
[%emt 0:00:14]} c5 {[%emt 0:04:29]} 14. Kh1 {[%emt 0:08:00]} cxd4 {[%emt 0:03:
23]} 15. exd4 {[%emt 0:00:11]} Nc7 {[%emt 0:00:08]} 16. Nd3 {[%emt 0:03:01]}
Bd6 {[%emt 0:07:41]} 17. Na4 {[%emt 0:04:04]} Bf5 {[%emt 0:02:09]} 18. Bb2 {
[%emt 0:01:46]} Bxd3 {[%emt 0:05:55]} 19. Qxd3 {[%emt 0:00:12]} h5 {[%emt 0:01:
12]} 20. Nc5 {[%emt 0:14:17]} Rb8 {[%emt 0:00:49]} 21. Rae1 {[%emt 0:00:14]} b6
{[%emt 0:03:27]} 22. Na6 {[%emt 0:06:53]} Nxa6 {[%emt 0:00:23]} 23. Qxa6 {
[%emt 0:00:05]} h4 {[%emt 0:03:28]} 24. f4 {[%emt 0:04:42]} hxg3 {[%emt 0:04:
34]} 25. hxg3 {[%emt 0:00:10]} Qd7 {[%emt 0:00:03]} 26. Qd3 {[%emt 0:05:55]}
Ne4 {[%emt 0:01:44]} 27. Kg1 {[%emt 0:10:53]} Qf5 {[%emt 0:11:41]} 28. Qb5 {
[%emt 0:06:16]} Re6 {[%emt 0:05:00]} 29. Rxe4 {[%emt 0:05:27]} Rxe4 {[%emt 0:
00:09]} 30. Bxe4 {[%emt 0:00:05]} Qxe4 {[%emt 0:00:06]} 31. Qd7 {[%emt 0:00:17]
} Bf8 {[%emt 0:01:57]} 32. Rf2 {[%emt 0:00:25]} Re8 {[%emt 0:00:53]} 33. Qb5 {
[%emt 0:02:32]} Re6 {[%emt 0:01:15]} 34. Qf1 {[%emt 0:00:44]} Qe3 {[%emt 0:00:
30]} 35. Kg2 {[%emt 0:01:54]} Qxb3 {[%emt 0:00:36]} 36. Bc1 {[%emt 0:00:04]}
Rg6 {[%emt 0:01:42]} 37. Rf3 {[%emt 0:01:11]} Qc2+ {[%emt 0:00:04]} 38. Rf2 {
[%emt 0:00:07]} Qe4+ {[%emt 0:00:26]} 0-1

[Event "African Championship"]
[Site "followchess.com"]
[Date "2021.05.26"]
[Round "8"]
[White "Silva, David"]
[Black "Adly, Ahmed"]
[Result "0-1"]
[ECO "B56"]
[WhiteElo "2296"]
[BlackElo "2615"]
[PlyCount "76"]
[EventDate "2021.??.??"]
[TimeControl "7200+30"]
[WhiteClock "0:38:17"]
[BlackClock "0:15:29"]

1. e4 c5 {[%emt 0:31:53]} 2. Nf3 {[%emt 0:32:17]} Nf6 {[%emt 0:00:20]} 3. Nc3 {
[%emt 0:00:09]} d6 {[%emt 0:00:12]} 4. d4 {[%emt 0:00:04]} cxd4 {[%emt 0:00:03]
} 5. Nxd4 {[%emt 0:00:10]} Nc6 {[%emt 0:01:23]} 6. f4 {[%emt 0:00:18]} Bd7 {
[%emt 0:00:28]} 7. Nxc6 {[%emt 0:00:28]} Bxc6 {[%emt 0:00:12]} 8. Qd3 {[%emt 0:
00:04]} e6 {[%emt 0:00:46]} 9. Be3 {[%emt 0:04:09]} Be7 {[%emt 0:01:02]} 10.
O-O-O {[%emt 0:01:55]} O-O {[%emt 0:02:13]} 11. Be2 {[%emt 0:02:21]} Qa5 {
[%emt 0:00:43]} 12. Bf3 {[%emt 0:00:31]} Rac8 {[%emt 0:09:10]} 13. Kb1 {
[%emt 0:06:04]} Rfd8 {[%emt 0:03:21]} 14. Qd2 {[%emt 0:07:10]} Qc7 {[%emt 0:02:
24]} 15. g4 {[%emt 0:00:43]} d5 {[%emt 0:10:44]} 16. exd5 {[%emt 0:00:55]} Nxd5
{[%emt 0:00:42]} 17. Nxd5 {[%emt 0:00:19]} Bxd5 {[%emt 0:00:08]} 18. Bxd5 {
[%emt 0:00:35]} Rxd5 {[%emt 0:00:02]} 19. Qe2 {[%emt 0:00:21]} Rcd8 {[%emt 0:
01:28]} 20. Rxd5 {[%emt 0:01:39]} Rxd5 {[%emt 0:00:19]} 21. Rd1 {[%emt 0:00:11]
} Qd7 {[%emt 0:01:24]} 22. Rf1 {[%emt 0:13:43]} a6 {[%emt 0:04:13]} 23. Bc1 {
[%emt 0:00:32]} Bf6 {[%emt 0:00:53]} 24. Rf3 {[%emt 0:07:26]} h5 {[%emt 0:06:
17]} 25. g5 {[%emt 0:03:59]} Bd8 {[%emt 0:01:15]} 26. Rd3 {[%emt 0:00:52]} Rxd3
{[%emt 0:00:14]} 27. cxd3 {[%emt 0:00:15]} Qd5 {[%emt 0:01:08]} 28. Qe4 {
[%emt 0:00:02]} g6 {[%emt 0:00:40]} 29. Be3 {[%emt 0:00:53]} Bc7 {[%emt 0:00:
57]} 30. Qxd5 {[%emt 0:08:47]} exd5 {[%emt 0:00:03]} 31. Kc2 {[%emt 0:00:25]}
f6 {[%emt 0:00:45]} 32. h3 {[%emt 0:08:23]} Kf7 {[%emt 0:00:51]} 33. Kc3 {
[%emt 0:01:33]} Ba5+ {[%emt 0:01:09]} 34. b4 {[%emt 0:01:23]} Bc7 {[%emt 0:00:
10]} 35. a4 {[%emt 0:00:07]} b5 {[%emt 0:09:08]} 36. axb5 {[%emt 0:04:02]} axb5
{[%emt 0:02:03]} 37. Bd2 {[%emt 0:10:39]} fxg5 {[%emt 0:01:51]} 38. fxg5 {
[%emt 0:00:07]} Be5+ {[%emt 0:00:09] -error} 0-1